[Event "Betsys MČR v online bleskovém šachu 2021"]
[Site "Chess.com"]
[Date "2021.04.17"]
[Round "13"]
[White "lockerbieQ"]
[Black "machajda"]
[Result "1-0"]
[WhiteElo "1780"]
[BlackElo "2028"]
[TimeControl "180+1"]
[EndTime "11:10:34 PDT"]
[Termination "Uživatel lockerbieQ zvítězil matem"]

1. e4 {[%clk 0:03:00.9]} 1... c5 {[%clk 0:02:57.6]} 2. Nf3 {[%clk 0:03:00.7]}
2... d6 {[%clk 0:02:57.8]} 3. d4 {[%clk 0:03:00.9]} 3... cxd4 {[%clk 0:02:58.7]}
4. Nxd4 {[%clk 0:03:01]} 4... Nf6 {[%clk 0:02:59.2]} 5. Nc3 {[%clk 0:03:01.2]}
5... a6 {[%clk 0:02:59.8]} 6. Be3 {[%clk 0:03:01.5]} 6... e5 {[%clk 0:02:59.6]}
7. Nb3 {[%clk 0:03:01.4]} 7... Be6 {[%clk 0:03:00.1]} 8. f3 {[%clk 0:03:01.6]}
8... Be7 {[%clk 0:03:00.2]} 9. Qd2 {[%clk 0:03:01.8]} 9... h5 {[%clk 0:02:58]}
10. O-O-O {[%clk 0:03:00.1]} 10... Nbd7 {[%clk 0:02:58.5]} 11. Nd5 {[%clk
0:03:00.4]} 11... Bxd5 {[%clk 0:02:57.8]} 12. exd5 {[%clk 0:03:00.6]} 12... Qc7
{[%clk 0:02:57.7]} 13. Kb1 {[%clk 0:03:00.1]} 13... O-O {[%clk 0:02:55.8]} 14.
Be2 {[%clk 0:02:52.6]} 14... b5 {[%clk 0:02:55]} 15. g4 {[%clk 0:02:52.5]} 15...
Nb6 {[%clk 0:02:53.9]} 16. gxh5 {[%clk 0:02:50.7]} 16... Nxh5 {[%clk 0:02:46.7]}
17. Rhg1 {[%clk 0:02:09.5]} 17... Bf6 {[%clk 0:02:42]} 18. f4 {[%clk 0:01:42.8]}
18... Nxf4 {[%clk 0:02:39.9]} 19. Bxf4 {[%clk 0:01:40.7]} 19... exf4 {[%clk
0:02:34.5]} 20. Qxf4 {[%clk 0:01:40.7]} 20... Qe7 {[%clk 0:02:27.5]} 21. Bd3
{[%clk 0:01:22.7]} 21... g6 {[%clk 0:02:19.4]} 22. Rde1 {[%clk 0:01:15.4]} 22...
Be5 {[%clk 0:02:18.9]} 23. Qf3 {[%clk 0:00:56.9]} 23... Nc4 {[%clk 0:02:03]} 24.
Bxg6 {[%clk 0:00:28.5]} 24... fxg6 {[%clk 0:01:48.9]} 25. Rxg6+ {[%clk
0:00:27.3]} 25... Bg7 {[%clk 0:01:21]} 26. Rxe7 {[%clk 0:00:10.2]} 26... Rxf3
{[%clk 0:01:20.3]} 27. Rgxg7+ {[%clk 0:00:08.4]} 27... Kf8 {[%clk 0:01:19.4]}
28. a3 {[%clk 0:00:07.4]} 28... Re8 {[%clk 0:01:05.8]} 29. Rb7 {[%clk
0:00:04.6]} 29... Re1+ {[%clk 0:00:56.2]} 30. Ka2 {[%clk 0:00:04.7]} 30... Re2
{[%clk 0:00:51.3]} 31. Nd4 {[%clk 0:00:04.8]} 31... Ref2 {[%clk 0:00:43.3]} 32.
Ne6+ {[%clk 0:00:04.8]} 32... Ke8 {[%clk 0:00:40.5]} 33. Rb8# {[%clk 0:00:05.2]}
1-0

[Event "Betsys MČR v online bleskovém šachu 2021"]
[Site "Chess.com"]
[Date "2021.04.17"]
[Round "13"]
[White "valid88"]
[Black "TomasOrnet1"]
[Result "1-0"]
[WhiteElo "1382"]
[BlackElo "1490"]
[TimeControl "180+1"]
[EndTime "11:10:35 PDT"]
[Termination "Uživatel valid88 zvítězil na čas"]

1. d4 {[%clk 0:03:00.9]} 1... d5 {[%clk 0:02:53.1]} 2. c4 {[%clk 0:02:55.6]}
2... e6 {[%clk 0:02:50.2]} 3. Nc3 {[%clk 0:02:55]} 3... c6 {[%clk 0:02:48.5]} 4.
Nf3 {[%clk 0:02:52.6]} 4... Bb4 {[%clk 0:02:46.1]} 5. e3 {[%clk 0:02:52.5]} 5...
Bxc3+ {[%clk 0:02:45.7]} 6. bxc3 {[%clk 0:02:52]} 6... Nf6 {[%clk 0:02:41.5]} 7.
Bd2 {[%clk 0:02:51.2]} 7... O-O {[%clk 0:02:37.4]} 8. cxd5 {[%clk 0:02:48.6]}
8... Nxd5 {[%clk 0:02:35.3]} 9. c4 {[%clk 0:02:47.9]} 9... Nb6 {[%clk
0:02:33.7]} 10. Be2 {[%clk 0:02:47.6]} 10... N8d7 {[%clk 0:02:24.4]} 11. O-O
{[%clk 0:02:44.8]} 11... c5 {[%clk 0:02:19.2]} 12. Ba5 {[%clk 0:02:28.7]} 12...
Qf6 {[%clk 0:02:06.8]} 13. Bc3 {[%clk 0:02:18.7]} 13... cxd4 {[%clk 0:02:00.5]}
14. Nxd4 {[%clk 0:02:15]} 14... Qg6 {[%clk 0:01:56.1]} 15. Bd3 {[%clk
0:02:12.2]} 15... Qg5 {[%clk 0:01:52.4]} 16. Nf3 {[%clk 0:02:11]} 16... Qc5
{[%clk 0:01:41.1]} 17. Bd4 {[%clk 0:01:59.3]} 17... Qc7 {[%clk 0:01:37.7]} 18.
Ng5 {[%clk 0:01:53]} 18... h6 {[%clk 0:01:30.6]} 19. Qh5 {[%clk 0:01:38]} 19...
e5 {[%clk 0:01:08.3]} 20. Bc3 {[%clk 0:01:19.4]} 20... Nf6 {[%clk 0:00:57.2]}
21. Ne6 {[%clk 0:01:09.6]} 21... Qe7 {[%clk 0:00:18.6]} 22. Qh4 {[%clk
0:00:57.7]} 22... Qxe6 {[%clk 0:00:14.9]} 23. f4 {[%clk 0:00:55.8]} 23... exf4
{[%clk 0:00:13.6]} 24. exf4 {[%clk 0:00:50.2]} 24... Qe3+ {[%clk 0:00:11.3]} 25.
Kh1 {[%clk 0:00:49.5]} 25... Qxd3 {[%clk 0:00:11.1]} 26. Bxf6 {[%clk 0:00:48.9]}
26... gxf6 {[%clk 0:00:08.8]} 27. Qxf6 {[%clk 0:00:49]} 27... Qg6 {[%clk
0:00:08]} 28. Qh4 {[%clk 0:00:47.3]} 28... Be6 {[%clk 0:00:05.6]} 29. Rf3 {[%clk
0:00:46]} 29... Bf5 {[%clk 0:00:05.4]} 30. Rg3 {[%clk 0:00:44.8]} 30... Kh7
{[%clk 0:00:05.1]} 31. Rxg6 {[%clk 0:00:44.9]} 31... fxg6 {[%clk 0:00:05]} 32.
Qe7+ {[%clk 0:00:44.2]} 1-0

[Event "Betsys MČR v online bleskovém šachu 2021"]
[Site "Chess.com"]
[Date "2021.04.17"]
[Round "13"]
[White "AlenaSouralova"]
[Black "adasmrazek"]
[Result "0-1"]
[WhiteElo "937"]
[BlackElo "1336"]
[TimeControl "180+1"]
[EndTime "11:10:36 PDT"]
[Termination "Uživatel adasmrazek zvítězil matem"]

1. e4 {[%clk 0:02:59.7]} 1... c5 {[%clk 0:02:59.5]} 2. Bc4 {[%clk 0:02:57.8]}
2... Nc6 {[%clk 0:02:58.3]} 3. Nf3 {[%clk 0:02:55.8]} 3... g6 {[%clk 0:02:57.4]}
4. Nc3 {[%clk 0:02:53.6]} 4... Bg7 {[%clk 0:02:55.5]} 5. d3 {[%clk 0:02:52.2]}
5... Nf6 {[%clk 0:02:53.8]} 6. Be3 {[%clk 0:02:49.9]} 6... d6 {[%clk 0:02:47.3]}
7. Qd2 {[%clk 0:02:48.4]} 7... O-O {[%clk 0:02:45.6]} 8. O-O-O {[%clk
0:02:46.7]} 8... Bd7 {[%clk 0:02:39.8]} 9. h4 {[%clk 0:02:35.8]} 9... h5 {[%clk
0:02:38.6]} 10. Rdg1 {[%clk 0:02:29.4]} 10... Rc8 {[%clk 0:02:31.8]} 11. g4
{[%clk 0:02:27.7]} 11... Bxg4 {[%clk 0:02:24.6]} 12. Ng5 {[%clk 0:02:22.1]}
12... Ne5 {[%clk 0:02:09.8]} 13. Ne6 {[%clk 0:02:04.4]} 13... fxe6 {[%clk
0:02:04.1]} 14. Bxe6+ {[%clk 0:02:04.3]} 14... Bxe6 {[%clk 0:02:04]} 15. Bh6
{[%clk 0:02:01.4]} 15... Nf3 {[%clk 0:02:01.1]} 16. Qe3 {[%clk 0:01:54.8]} 16...
Nxg1 {[%clk 0:01:56.7]} 17. Rxg1 {[%clk 0:01:55.7]} 17... Bf7 {[%clk 0:01:55.3]}
18. Qg5 {[%clk 0:01:54.3]} 18... Ng4 {[%clk 0:01:47.2]} 19. Bxg7 {[%clk
0:01:50.2]} 19... Kxg7 {[%clk 0:01:46.2]} 20. Nb5 {[%clk 0:01:33.6]} 20... a6
{[%clk 0:01:33.2]} 21. Na7 {[%clk 0:01:32]} 21... Ra8 {[%clk 0:01:32.1]} 22. Nc8
{[%clk 0:01:22.4]} 22... Rxc8 {[%clk 0:01:30.9]} 23. f3 {[%clk 0:01:15.3]} 23...
Ne5 {[%clk 0:01:27.8]} 24. f4 {[%clk 0:01:13.6]} 24... Nf3 {[%clk 0:01:23.1]}
25. Qg3 {[%clk 0:01:09.1]} 25... Nxg1 {[%clk 0:01:20.9]} 26. Qxg1 {[%clk
0:01:10]} 26... Qa5 {[%clk 0:01:18.3]} 27. f5 {[%clk 0:01:06]} 27... Qxa2 {[%clk
0:01:17.4]} 28. Kd2 {[%clk 0:01:03.2]} 28... Qxb2 {[%clk 0:01:07.5]} 29. Qg3
{[%clk 0:00:41.7]} 29... b5 {[%clk 0:01:01.7]} 30. Ke3 {[%clk 0:00:35.2]} 30...
Qc1+ {[%clk 0:01:00.3]} 31. Ke2 {[%clk 0:00:27.8]} 31... Qxc2+ {[%clk
0:00:58.7]} 32. Ke1 {[%clk 0:00:19.3]} 32... Qc1+ {[%clk 0:00:56.4]} 33. Ke2
{[%clk 0:00:17.7]} 33... c4 {[%clk 0:00:55.6]} 34. dxc4 {[%clk 0:00:16.3]} 34...
Rxc4 {[%clk 0:00:55.5]} 35. Kd3 {[%clk 0:00:14.2]} 35... Rc3+ {[%clk 0:00:54.2]}
36. Ke2 {[%clk 0:00:13.7]} 36... Rxg3 {[%clk 0:00:54.6]} 37. Kf2 {[%clk
0:00:13.9]} 37... Qg1+ {[%clk 0:00:54.1]} 38. Ke2 {[%clk 0:00:13.6]} 38... Qg2+
{[%clk 0:00:53.7]} 39. Ke1 {[%clk 0:00:12.5]} 39... Rf3 {[%clk 0:00:53.3]} 40.
Kd1 {[%clk 0:00:11.2]} 40... Rf1# {[%clk 0:00:53]} 0-1

[Event "Betsys MČR v online bleskovém šachu 2021"]
[Site "Chess.com"]
[Date "2021.04.17"]
[Round "13"]
[White "Maty_2010"]
[Black "Simaril76"]
[Result "1-0"]
[WhiteElo "952"]
[BlackElo "710"]
[TimeControl "180+1"]
[EndTime "11:10:36 PDT"]
[Termination "Uživatel Maty_2010 zvítězil na čas"]

1. e4 {[%clk 0:03:00.9]} 1... c5 {[%clk 0:02:58.5]} 2. Bc4 {[%clk 0:03:00.4]}
2... Nc6 {[%clk 0:02:58.1]} 3. Qh5 {[%clk 0:02:58.5]} 3... e6 {[%clk 0:02:40.9]}
4. Nf3 {[%clk 0:02:49.6]} 4... Nf6 {[%clk 0:02:40.6]} 5. Qh3 {[%clk 0:02:46.5]}
5... d5 {[%clk 0:02:31.2]} 6. exd5 {[%clk 0:02:46]} 6... exd5 {[%clk 0:02:28.4]}
7. Bb5 {[%clk 0:02:30.1]} 7... Bd7 {[%clk 0:02:22.9]} 8. Qh4 {[%clk 0:02:22.6]}
8... Be7 {[%clk 0:02:18.5]} 9. d3 {[%clk 0:02:20.3]} 9... Qc7 {[%clk 0:02:18.3]}
10. Bf4 {[%clk 0:02:16.5]} 10... Bd6 {[%clk 0:01:45.1]} 11. Bxd6 {[%clk
0:02:07.5]} 11... Qxd6 {[%clk 0:01:41.7]} 12. O-O {[%clk 0:02:05.2]} 12... O-O-O
{[%clk 0:01:40.4]} 13. c3 {[%clk 0:01:56.8]} 13... a6 {[%clk 0:01:40.6]} 14. Ba4
{[%clk 0:01:55.3]} 14... Bg4 {[%clk 0:01:26.8]} 15. d4 {[%clk 0:01:35.3]} 15...
Bxf3 {[%clk 0:01:20.8]} 16. gxf3 {[%clk 0:01:28.3]} 16... c4 {[%clk 0:01:09.3]}
17. Qh3+ {[%clk 0:01:22.2]} 17... Qd7 {[%clk 0:01:06.3]} 18. Qxd7+ {[%clk
0:01:14.2]} 18... Nxd7 {[%clk 0:01:02.1]} 19. Bc2 {[%clk 0:01:11]} 19... g6
{[%clk 0:00:58.3]} 20. b3 {[%clk 0:01:08.1]} 20... f5 {[%clk 0:00:58.1]} 21.
bxc4 {[%clk 0:01:05.8]} 21... dxc4 {[%clk 0:00:50.9]} 22. Na3 {[%clk 0:01:04.6]}
22... Nb6 {[%clk 0:00:41.7]} 23. Rab1 {[%clk 0:00:53.7]} 23... Na4 {[%clk
0:00:33.9]} 24. Bxa4 {[%clk 0:00:50.1]} 24... Rhe8 {[%clk 0:00:20.4]} 25. Nxc4
{[%clk 0:00:45.7]} 25... Re2 {[%clk 0:00:12.5]} 26. d5 {[%clk 0:00:38.3]} 26...
Ne7 {[%clk 0:00:04.6]} 27. d6 {[%clk 0:00:34.5]} 27... Rxd6 {[%clk 0:00:02.8]}
28. Nxd6+ {[%clk 0:00:33.3]} 1-0

[Event "Betsys MČR v online bleskovém šachu 2021"]
[Site "Chess.com"]
[Date "2021.04.17"]
[Round "13"]
[White "Rognort"]
[Black "Mikkes33"]
[Result "1-0"]
[WhiteElo "1787"]
[BlackElo "1593"]
[TimeControl "180+1"]
[EndTime "11:10:41 PDT"]
[Termination "Uživatel Rognort zvítězil na čas"]

1. e4 {[%clk 0:03:00.9]} 1... e5 {[%clk 0:02:57.6]} 2. Nf3 {[%clk 0:03:00.9]}
2... Nc6 {[%clk 0:02:57]} 3. d4 {[%clk 0:02:59.6]} 3... exd4 {[%clk 0:02:55.8]}
4. Bc4 {[%clk 0:03:00.1]} 4... Bc5 {[%clk 0:02:42.3]} 5. c3 {[%clk 0:02:59.9]}
5... Nge7 {[%clk 0:02:28]} 6. cxd4 {[%clk 0:02:56.8]} 6... Bb4+ {[%clk
0:02:25.4]} 7. Nc3 {[%clk 0:02:57.2]} 7... d5 {[%clk 0:02:23.7]} 8. exd5 {[%clk
0:02:52.5]} 8... Nxd5 {[%clk 0:02:16.8]} 9. Bxd5 {[%clk 0:02:45.8]} 9... Qxd5
{[%clk 0:02:11.8]} 10. O-O {[%clk 0:02:46.3]} 10... Bxc3 {[%clk 0:02:10.2]} 11.
bxc3 {[%clk 0:02:45.6]} 11... O-O {[%clk 0:02:09.2]} 12. h3 {[%clk 0:02:34.7]}
12... Bf5 {[%clk 0:02:02.6]} 13. Bf4 {[%clk 0:02:27.3]} 13... Rac8 {[%clk
0:01:50.3]} 14. Re1 {[%clk 0:02:25.3]} 14... Be4 {[%clk 0:01:37.4]} 15. c4
{[%clk 0:02:11.4]} 15... Bxf3 {[%clk 0:01:27.8]} 16. cxd5 {[%clk 0:02:11.4]}
16... Bxd1 {[%clk 0:01:26.5]} 17. dxc6 {[%clk 0:02:12]} 17... Ba4 {[%clk
0:01:14.5]} 18. cxb7 {[%clk 0:02:10.7]} 18... Rb8 {[%clk 0:01:14.1]} 19. Rab1
{[%clk 0:02:00.9]} 19... Bc6 {[%clk 0:01:10.4]} 20. Rec1 {[%clk 0:01:58.7]}
20... Be4 {[%clk 0:01:07.5]} 21. Rb3 {[%clk 0:01:53.4]} 21... Rxb7 {[%clk
0:01:05.4]} 22. Rxb7 {[%clk 0:01:50.8]} 22... Bxb7 {[%clk 0:01:04]} 23. Rxc7
{[%clk 0:01:51.3]} 23... Bd5 {[%clk 0:00:53.5]} 24. Rxa7 {[%clk 0:01:49.6]}
24... Ra8 {[%clk 0:00:48.2]} 25. Rxa8+ {[%clk 0:01:39.5]} 25... Bxa8 {[%clk
0:00:47.4]} 26. Kf1 {[%clk 0:01:38.6]} 26... f5 {[%clk 0:00:47]} 27. Ke2 {[%clk
0:01:35.7]} 27... Kf7 {[%clk 0:00:46.8]} 28. Kd3 {[%clk 0:01:34.9]} 28... Bxg2
{[%clk 0:00:45.2]} 29. h4 {[%clk 0:01:34.3]} 29... Ke6 {[%clk 0:00:40.6]} 30. a4
{[%clk 0:01:31.8]} 30... Kd5 {[%clk 0:00:20.4]} 31. a5 {[%clk 0:01:30.8]} 31...
Bf1+ {[%clk 0:00:18]} 32. Kc3 {[%clk 0:01:28.3]} 32... g6 {[%clk 0:00:16.5]} 33.
Be5 {[%clk 0:01:22.6]} 33... h5 {[%clk 0:00:14.9]} 34. f4 {[%clk 0:01:21.8]}
34... Ba6 {[%clk 0:00:13.1]} 35. Kb4 {[%clk 0:01:20.9]} 35... Bf1 {[%clk
0:00:12.1]} 36. a6 {[%clk 0:01:09.2]} 36... Bxa6 {[%clk 0:00:11.7]} 37. Ka5
{[%clk 0:01:09.3]} 37... Bd3 {[%clk 0:00:10.2]} 38. Kb6 {[%clk 0:01:09.7]} 38...
Be4 {[%clk 0:00:07.8]} 39. Kc7 {[%clk 0:01:10]} 39... Ke6 {[%clk 0:00:07.9]} 40.
Kd8 {[%clk 0:01:09.7]} 40... Bc6 {[%clk 0:00:06.3]} 41. Kc7 {[%clk 0:01:09.4]}
41... Ba4 {[%clk 0:00:05.3]} 42. Kb6 {[%clk 0:01:09]} 42... Be8 {[%clk
0:00:04.3]} 43. Kc5 {[%clk 0:01:09]} 43... Ba4 {[%clk 0:00:01.9]} 44. d5+ {[%clk
0:01:08.8]} 1-0

[Event "Betsys MČR v online bleskovém šachu 2021"]
[Site "Chess.com"]
[Date "2021.04.17"]
[Round "13"]
[White "MatyldaCZ"]
[Black "Hanicka1517"]
[Result "0-1"]
[WhiteElo "1419"]
[BlackElo "1603"]
[TimeControl "180+1"]
[EndTime "11:10:41 PDT"]
[Termination "Uživatel Hanicka1517 zvítězil matem"]

1. e4 {[%clk 0:03:00.9]} 1... e6 {[%clk 0:03:00.2]} 2. Nf3 {[%clk 0:03:01.5]}
2... d5 {[%clk 0:03:00.2]} 3. exd5 {[%clk 0:03:01.7]} 3... exd5 {[%clk
0:03:00.5]} 4. d4 {[%clk 0:03:02.3]} 4... Bd6 {[%clk 0:03:00.6]} 5. Bd3 {[%clk
0:03:02.2]} 5... Ne7 {[%clk 0:03:00.8]} 6. O-O {[%clk 0:03:01.9]} 6... Nbc6
{[%clk 0:03:01]} 7. Nc3 {[%clk 0:03:01.1]} 7... Bg4 {[%clk 0:03:00.1]} 8. Be3
{[%clk 0:02:58.6]} 8... Qd7 {[%clk 0:02:59.2]} 9. Bb5 {[%clk 0:02:55.8]} 9...
O-O-O {[%clk 0:02:50.4]} 10. Bxc6 {[%clk 0:02:55.1]} 10... Qxc6 {[%clk
0:02:50.5]} 11. h3 {[%clk 0:02:54.2]} 11... Bh5 {[%clk 0:02:47.5]} 12. Re1
{[%clk 0:02:52.9]} 12... f6 {[%clk 0:02:47.4]} 13. a3 {[%clk 0:02:49.4]} 13...
g5 {[%clk 0:02:47.2]} 14. Bd2 {[%clk 0:02:48]} 14... Bg6 {[%clk 0:02:42.7]} 15.
b4 {[%clk 0:02:41.9]} 15... h5 {[%clk 0:02:40.4]} 16. b5 {[%clk 0:02:42]} 16...
Qd7 {[%clk 0:02:40.5]} 17. a4 {[%clk 0:02:31.4]} 17... g4 {[%clk 0:02:40.9]} 18.
hxg4 {[%clk 0:02:27.6]} 18... hxg4 {[%clk 0:02:41.2]} 19. Nh2 {[%clk 0:02:24.2]}
19... Bxh2+ {[%clk 0:02:40.1]} 20. Kf1 {[%clk 0:02:23.6]} 20... Bd6 {[%clk
0:02:38.8]} 21. g3 {[%clk 0:02:13.7]} 21... Rh2 {[%clk 0:02:31.2]} 22. a5 {[%clk
0:02:07.5]} 22... Rdh8 {[%clk 0:02:31]} 23. Ne2 {[%clk 0:02:03.1]} 23... Rh1+
{[%clk 0:02:25.7]} 24. Ng1 {[%clk 0:02:02.3]} 24... Qf5 {[%clk 0:02:13.7]} 25.
b6 {[%clk 0:01:55.1]} 25... cxb6 {[%clk 0:02:00.8]} 26. axb6 {[%clk 0:01:54.8]}
26... axb6 {[%clk 0:01:58.5]} 27. Ra8+ {[%clk 0:01:53.8]} 27... Kc7 {[%clk
0:01:58.8]} 28. Rxh8 {[%clk 0:01:54.1]} 28... Rxh8 {[%clk 0:01:57.7]} 29. Bf4
{[%clk 0:01:25.6]} 29... Kd7 {[%clk 0:01:43.6]} 30. Bxd6 {[%clk 0:01:24.8]}
30... Kxd6 {[%clk 0:01:44]} 31. Qd2 {[%clk 0:01:20.5]} 31... Kd7 {[%clk
0:01:32.9]} 32. Qb4 {[%clk 0:01:10.3]} 32... Nc6 {[%clk 0:01:04.2]} 33. Qxb6
{[%clk 0:01:09.8]} 33... Rb8 {[%clk 0:01:03.2]} 34. Ne2 {[%clk 0:00:52.3]} 34...
Qxc2 {[%clk 0:01:02.6]} 35. Nf4 {[%clk 0:00:45.6]} 35... Bd3+ {[%clk 0:00:57.3]}
36. Kg1 {[%clk 0:00:45.4]} 36... Be4 {[%clk 0:00:55.3]} 37. Nh5 {[%clk
0:00:31.5]} 37... Qc3 {[%clk 0:00:34.9]} 38. Nxf6+ {[%clk 0:00:29]} 38... Ke6
{[%clk 0:00:35.2]} 39. Qc7 {[%clk 0:00:26.3]} 39... Qxe1+ {[%clk 0:00:34.4]} 40.
Kh2 {[%clk 0:00:24.4]} 40... Qh1# {[%clk 0:00:34.4]} 0-1

[Event "Betsys MČR v online bleskovém šachu 2021"]
[Site "Chess.com"]
[Date "2021.04.17"]
[Round "13"]
[White "CzechMerlin"]
[Black "Richter_Rudolf"]
[Result "1-0"]
[WhiteElo "1663"]
[BlackElo "1421"]
[TimeControl "180+1"]
[EndTime "11:10:42 PDT"]
[Termination "Uživatel CzechMerlin zvítězil na čas"]

1. d4 {[%clk 0:03:00.9]} 1... d5 {[%clk 0:02:52]} 2. c4 {[%clk 0:03:01.1]} 2...
e5 {[%clk 0:02:51]} 3. dxe5 {[%clk 0:02:59.6]} 3... d4 {[%clk 0:02:51.4]} 4. e4
{[%clk 0:02:59.2]} 4... Bb4+ {[%clk 0:02:46.2]} 5. Bd2 {[%clk 0:02:57.3]} 5...
Bxd2+ {[%clk 0:02:43.7]} 6. Qxd2 {[%clk 0:02:58.2]} 6... Nc6 {[%clk 0:02:43.6]}
7. f4 {[%clk 0:02:58.1]} 7... Bg4 {[%clk 0:02:39.7]} 8. Nf3 {[%clk 0:02:56.9]}
8... Nge7 {[%clk 0:02:37.7]} 9. Be2 {[%clk 0:02:53.7]} 9... Ng6 {[%clk
0:02:37.2]} 10. h3 {[%clk 0:02:52]} 10... Bxf3 {[%clk 0:02:36.7]} 11. Bxf3
{[%clk 0:02:52]} 11... f6 {[%clk 0:02:36.7]} 12. exf6 {[%clk 0:02:51]} 12...
Qxf6 {[%clk 0:02:37.3]} 13. g3 {[%clk 0:02:47.9]} 13... h5 {[%clk 0:02:33.2]}
14. f5 {[%clk 0:02:40.8]} 14... Nge5 {[%clk 0:02:30.6]} 15. Bg2 {[%clk 0:02:27]}
15... d3 {[%clk 0:02:29.8]} 16. Nc3 {[%clk 0:02:21.8]} 16... Nd4 {[%clk
0:02:29.8]} 17. O-O-O {[%clk 0:02:18.5]} 17... Nxc4 {[%clk 0:02:14.7]} 18. Qxd3
{[%clk 0:02:11.6]} 18... Qh6+ {[%clk 0:01:33.9]} 19. Kb1 {[%clk 0:01:58]} 19...
Ne3 {[%clk 0:01:33.5]} 20. Qxd4 {[%clk 0:01:45.8]} 20... Nxd1 {[%clk 0:01:15.6]}
21. Qe5+ {[%clk 0:01:41.1]} 21... Kf8 {[%clk 0:00:48.3]} 22. Rxd1 {[%clk
0:01:36.5]} 22... Qc6 {[%clk 0:00:40.6]} 23. Nd5 {[%clk 0:01:31.5]} 23... Re8
{[%clk 0:00:39]} 24. Qxc7 {[%clk 0:01:25.1]} 24... Qxc7 {[%clk 0:00:35]} 25.
Nxc7 {[%clk 0:01:25.1]} 25... Rc8 {[%clk 0:00:35.1]} 26. Ne6+ {[%clk 0:01:23.1]}
26... Kf7 {[%clk 0:00:35.3]} 27. Rd7+ {[%clk 0:01:22.2]} 27... Kf6 {[%clk
0:00:34.1]} 28. Rxg7 {[%clk 0:01:17.9]} 28... Rc6 {[%clk 0:00:22.4]} 29. e5+
{[%clk 0:01:09.8]} 29... Kxe5 {[%clk 0:00:20.5]} 30. Bxc6 {[%clk 0:01:09.4]}
30... bxc6 {[%clk 0:00:18.9]} 31. g4 {[%clk 0:01:06]} 31... hxg4 {[%clk
0:00:18]} 32. hxg4 {[%clk 0:01:06.1]} 32... Ke4 {[%clk 0:00:16.3]} 33. Rxa7
{[%clk 0:01:02.9]} 33... Kd3 {[%clk 0:00:16.3]} 34. a3 {[%clk 0:01:02.4]} 34...
Kc4 {[%clk 0:00:12.9]} 35. Ka2 {[%clk 0:01:02]} 35... Rh2 {[%clk 0:00:11.5]} 36.
Ra5 {[%clk 0:01:00.4]} 36... c5 {[%clk 0:00:11.2]} 37. Rxc5+ {[%clk 0:00:59.9]}
37... Kd3 {[%clk 0:00:09.5]} 38. a4 {[%clk 0:00:59.1]} 38... Rd2 {[%clk
0:00:04.9]} 39. a5 {[%clk 0:00:58.7]} 39... Ke4 {[%clk 0:00:04.4]} 40. a6 {[%clk
0:00:56.5]} 1-0

[Event "Betsys MČR v online bleskovém šachu 2021"]
[Site "Chess.com"]
[Date "2021.04.17"]
[Round "13"]
[White "FormerProdigy"]
[Black "VojtechPlat"]
[Result "1-0"]
[WhiteElo "2881"]
[BlackElo "2835"]
[TimeControl "180+1"]
[EndTime "11:10:44 PDT"]
[Termination "Uživatel FormerProdigy zvítězil po vzdání soupeře"]

1. e4 {[%clk 0:03:00.9]} 1... d6 {[%clk 0:02:59.8]} 2. d4 {[%clk 0:03:00.6]}
2... Nf6 {[%clk 0:03:00]} 3. Nc3 {[%clk 0:03:00.8]} 3... e5 {[%clk 0:03:00.1]}
4. Nf3 {[%clk 0:03:00.6]} 4... exd4 {[%clk 0:03:00.2]} 5. Nxd4 {[%clk
0:03:00.1]} 5... Be7 {[%clk 0:03:00]} 6. g3 {[%clk 0:03:00.1]} 6... O-O {[%clk
0:02:59.7]} 7. Bg2 {[%clk 0:03:00.2]} 7... Re8 {[%clk 0:02:59.8]} 8. O-O {[%clk
0:02:59.8]} 8... a6 {[%clk 0:02:59]} 9. a4 {[%clk 0:02:57.6]} 9... Nbd7 {[%clk
0:02:59.1]} 10. h3 {[%clk 0:02:50]} 10... Bf8 {[%clk 0:02:58.8]} 11. Re1 {[%clk
0:02:48.4]} 11... Nc5 {[%clk 0:02:58.4]} 12. a5 {[%clk 0:02:45.1]} 12... Bd7
{[%clk 0:02:54.5]} 13. Bf4 {[%clk 0:02:40.8]} 13... Rb8 {[%clk 0:02:50.9]} 14.
e5 {[%clk 0:02:29.8]} 14... dxe5 {[%clk 0:02:49.8]} 15. Bxe5 {[%clk 0:02:30.7]}
15... Ne6 {[%clk 0:02:26.7]} 16. Nf5 {[%clk 0:02:23.3]} 16... Nc5 {[%clk
0:02:17.8]} 17. Qf3 {[%clk 0:02:03.9]} 17... Bc6 {[%clk 0:02:17.4]} 18. Nh6+
{[%clk 0:02:01.4]} 18... gxh6 {[%clk 0:02:11.9]} 19. Qxf6 {[%clk 0:02:01.5]}
19... Qxf6 {[%clk 0:02:09]} 20. Bxf6 {[%clk 0:02:02.4]} 20... Bxg2 {[%clk
0:02:05.8]} 21. Kxg2 {[%clk 0:02:03.3]} 21... Ne6 {[%clk 0:01:48.3]} 22. Nd5
{[%clk 0:01:49.5]} 22... Bg7 {[%clk 0:01:41.9]} 23. Rad1 {[%clk 0:01:40.3]}
23... Kf8 {[%clk 0:01:36]} 24. Re3 {[%clk 0:01:32.8]} 24... c6 {[%clk 0:01:33]}
25. Bxg7+ {[%clk 0:01:31.8]} 25... Kxg7 {[%clk 0:01:33]} 26. Nb6 {[%clk
0:01:31.1]} 26... Rbd8 {[%clk 0:01:32]} 27. Red3 {[%clk 0:01:19.1]} 27... Rxd3
{[%clk 0:01:31.1]} 28. Rxd3 {[%clk 0:01:20]} 28... Nf8 {[%clk 0:01:29.1]} 29.
Nc4 {[%clk 0:01:12]} 29... Re2 {[%clk 0:01:17.7]} 30. Ne3 {[%clk 0:01:11.9]}
30... Re1 {[%clk 0:01:16.1]} 31. Rb3 {[%clk 0:01:12]} 31... Ra1 {[%clk
0:01:14.2]} 32. Nc4 {[%clk 0:01:06.7]} 32... Ra4 {[%clk 0:01:13.6]} 33. Nd6
{[%clk 0:01:06.9]} 33... Rxa5 {[%clk 0:01:03]} 34. Rxb7 {[%clk 0:01:06.8]} 34...
Rd5 {[%clk 0:01:00.3]} 35. Nxf7 {[%clk 0:01:00.5]} 35... Kg6 {[%clk 0:01:00.2]}
36. Nh8+ {[%clk 0:00:59.4]} 36... Kh5 {[%clk 0:00:58.4]} 37. g4+ {[%clk
0:00:43.3]} 37... Kh4 {[%clk 0:00:55.9]} 38. Rf7 {[%clk 0:00:42]} 38... Ng6
{[%clk 0:00:55.3]} 39. Rxh7 {[%clk 0:00:41.1]} 39... Nxh8 {[%clk 0:00:18.4]} 40.
Rxh6+ {[%clk 0:00:41.1]} 40... Kg5 {[%clk 0:00:18.4]} 41. Rxh8 {[%clk
0:00:41.1]} 1-0